bitfinex-derivatives/quotes_ETHF0:USTF0_20251107
["timestamp","ask_amount","ask_price","bid_price","bid_amount"]
[1762490802195,0.00450275,3332.1,3331.7,3.69522]
[1762490802894,0.00450275,3332.1,3331.7,11.69522]
[1762490803096,0.63194,3333.0,3331.7,5.3609115]
[1762490803398,0.1456,3333.0,3332.9,3.2078]
[1762490804199,0.14806365,3333.0,3332.9,3.21069038]
[1762490804697,0.00246365,3333.0,3332.9,3.21069038]
[1762490804896,0.14806365,3333.0,3332.9,3.21069038]
[1762490805906,0.00246365,3333.0,3332.9,3.21069038]
[1762490807105,0.14806365,3333.0,3332.9,3.21069038]
[1762490810712,0.14806365,3333.0,3332.9,3.69704038]
[1762490812412,0.88569365,3333.0,3332.9,3.21069038]
[1762490812613,0.88569365,3333.0,3332.9,3.69704038]
[1762490812802,0.39936365,3333.0,3332.9,3.69704038]
[1762490813412,0.14806365,3333.0,3332.9,3.69704038]
[1762490813809,0.39936365,3333.0,3332.9,3.69704038]
[1762490814620,0.88569365,3333.0,3332.9,3.69704038]
[1762490815122,0.14806365,3333.0,3332.9,3.69704038]
[1762490816525,0.39936365,3333.0,3332.9,3.69704038]
[1762490816716,0.14806365,3333.0,3332.9,3.69704038]
[1762490816915,0.00246365,3333.0,3332.9,3.69704038]
[1762490818225,0.00450275,3333.3,3333.2,0.4863]
[1762490819227,0.00693741,3333.3,3333.2,0.4863]
[1762490823618,0.25823741,3333.3,3333.2,0.4863]
[1762490824024,0.74452741,3333.3,3333.2,0.4863]
[1762490824227,0.25823741,3333.3,3333.2,0.4863]
[1762490824626,0.74452741,3333.3,3333.2,0.4863]
[1762490825232,0.25823741,3333.3,3333.2,0.4863]
[1762490825534,0.87413,3333.0,3332.9,3.21069038]
[1762490826827,0.87413,3333.0,3332.9,3.69704038]
[1762490827633,0.87413,3333.0,3332.9,3.21069038]
[1762490829139,0.87413,3333.0,3332.9,0.00289038]
[1762490829140,1.18956912,3333.0,3332.9,0.00289038]
[1762490829937,0.73057,3332.7,3332.6,0.00450275]
[1762490830131,1.04625528,3332.7,3332.6,0.00450275]
[1762490831037,1.04625528,3332.7,3332.6,0.00667634]
[1762490831539,0.1436,3333.0,3332.8,0.2414]
[1762490831540,0.48635,3332.9,3332.8,0.2414]
[1762490831841,0.48633,3333.0,3332.9,0.48634]
[1762490832042,0.80210095,3333.0,3332.9,3.93554]
[1762490832235,1.04630095,3333.0,3332.9,3.93554]
[1762490832634,0.31577095,3333.0,3332.9,3.93554]
[1762490832835,0.00693741,3333.3,3333.2,0.7277]
[1762490837348,0.25113741,3333.3,3333.2,0.7277]
[1762490840152,0.00693741,3333.3,3333.2,0.7277]
[1762490841151,0.73742741,3333.3,3333.2,0.7277]
[1762490844453,0.73742741,3333.3,3333.2,0.4863]
[1762490848148,0.73742741,3333.3,3333.2,0.7277]
[1762490849249,0.73742741,3333.3,3333.2,0.4863]
[1762490849956,0.73742741,3333.3,3333.2,0.7277]
[1762490851355,0.7305,3333.2,3333.1,0.48631]
[1762490851558,0.48632,3333.1,3333.0,0.48632]
[1762490851860,0.48633,3333.0,3332.9,3.4492]
[1762490853260,0.87413,3333.0,3332.9,3.2078]
[1762490854660,0.73057,3332.7,3332.6,0.49306634]
[1762490854961,0.48636,3332.8,3332.7,0.71627]
[1762490856259,0.72476,3332.8,3332.7,0.71627]
[1762490856954,0.72477,3332.7,3332.6,0.00667634]
[1762490875865,0.72496,3332.1,3332.0,3.2078]
[1762490876760,0.72496,3332.1,3332.0,3.2114177]
[1762490876961,0.72496,3332.1,3332.0,0.0036177]
[1762490881266,0.72506,3331.4,3331.3,2.1531115]
[1762490881467,0.72507,3331.3,3331.2,3.2078]
[1762490882265,0.72507,3331.3,3331.2,3.21059846]
[1762490886767,0.72507,3331.3,3331.2,0.00279846]
[1762490888769,0.72803,3330.9,3330.8,3.2078]
[1762490889672,0.73098153,3330.9,3330.8,3.21128341]
[1762490889868,0.48668,3330.6,3330.5,0.00450275]
[1762490890168,0.72808,3330.6,3330.5,0.00450275]
[1762490891065,0.72808,3330.6,3330.5,0.00676865]
[1762490905478,0.00295153,3330.9,3330.7,0.48666]
[1762490905684,3.21230275,3331.6,3331.5,0.3729]
[1762490905889,3.94023275,3331.6,3331.5,0.2303]
[1762490906177,3.94023275,3331.6,3331.0,3.2078]
[1762490906178,0.2414,3331.1,3331.0,3.2078]
[1762490906376,0.1514,3331.5,3331.0,3.5807]
[1762490906575,0.4866,3331.1,3331.0,3.5807]
[1762490907578,0.48659,3331.3,3331.2,0.2303]
[1762490908680,0.00301244,3331.5,3331.4,0.2303]
[1762490908874,0.00301244,3331.5,3331.4,3.92466]
[1762490909281,0.48956244,3331.5,3331.4,3.4381]
[1762490910276,0.00301244,3331.5,3331.4,3.4381]
[1762490910673,0.00301244,3331.5,3331.4,3.92466]
[1762490913783,3.2078,3332.8,3331.4,3.92466]
[1762490913784,0.1514,3333.0,3332.5,0.1426]
[1762490914087,0.1514,3333.0,3332.9,0.2303]
[1762490914088,0.48634,3333.0,3332.9,0.2303]
[1762490914677,0.73117489,3333.0,3332.9,0.23271074]
[1762490914873,0.87187489,3333.0,3332.9,0.00241074]
[1762490915780,0.48977489,3333.0,3332.9,0.23661074]
[1762490916387,0.73347489,3333.0,3332.9,0.23661074]
[1762490917381,0.3844,3332.5,3332.0,3.2626]
[1762490917585,0.73016,3332.1,3332.0,3.2078]
[1762490917888,0.73022,3331.7,3331.6,3.442]
[1762490918182,0.2437,3331.7,3331.6,3.92853]
[1762490918382,0.48647,3332.0,3331.9,0.2326]
[1762490919583,0.48644,3332.3,3332.2,0.2326]
[1762490920186,0.1407,3332.5,3332.0,0.1382]
[1762490920385,0.1407,3332.5,3331.8,0.48649]
[1762490920692,0.48647,3332.1,3332.0,0.2326]
[1762490921093,0.4865,3331.8,3331.7,3.4404]
[1762490921391,0.7326,3331.8,3331.7,3.2078]
[1762490922691,0.4865,3331.8,3331.7,3.4404]
[1762490923893,0.48648,3332.0,3331.9,0.2326]
[1762490924085,0.1407,3332.5,3332.0,0.3708]
[1762490924285,3.2078,3333.1,3332.0,0.3708]
[1762490924286,0.48645,3332.2,3332.1,3.4404]
[1762490924496,0.48645,3332.2,3332.1,3.92686]
[1762490924694,9.44938,3332.6,3332.5,0.2326]
[1762490925083,9.44938,3332.6,3332.5,0.3708]
[1762490925694,8.963,3332.6,3332.5,0.3708]
[1762490925889,8.963,3332.6,3332.5,4.065]
[1762490926389,0.48638,3332.7,3332.6,0.2326]
[1762490928295,0.48637,3332.8,3332.7,0.2326]
[1762490929496,0.73247,3332.8,3332.7,0.2326]
[1762490930187,0.2461,3332.8,3332.7,3.2078]
[1762490930385,0.73246,3332.8,3332.7,3.2078]
[1762490933498,0.2461,3332.8,3332.7,3.92677]
[1762490933695,0.48636,3332.8,3332.7,3.69417]
[1762490934000,0.48636,3332.8,3332.7,3.92677]
[1762490934997,0.48636,3332.8,3332.7,3.4404]
[1762490938294,0.73246,3332.8,3332.7,3.4404]
[1762490938500,0.73246,3332.8,3332.7,3.2078]
[1762490938801,0.73246,3332.8,3332.7,3.4404]
[1762490942199,0.48643,3332.3,3332.2,3.4404]
[1762490943198,0.14253489,3333.0,3332.4,0.2326]
[1762490943393,0.48638,3332.6,3332.5,0.3708]
[1762490944403,0.48638,3332.6,3332.5,0.2326]
[1762490944600,0.73248,3332.6,3332.5,0.2326]
[1762490944999,0.48638,3332.6,3332.5,0.3711]
[1762490945998,0.48643,3332.3,3332.2,3.2078]
[1762490946196,0.72763,3332.3,3332.2,3.4444]
[1762490946398,0.48643,3332.3,3332.2,3.4444]
[1762490948409,0.14253489,3333.0,3332.5,0.3751]
[1762490948410,0.4864,3332.6,3332.5,0.3751]
[1762490948610,0.48976489,3333.0,3332.9,0.2366]
[1762490948812,0.00343489,3333.0,3332.9,0.2366]
[1762490949506,0.48976489,3333.0,3332.9,0.2366]
[1762490950110,0.00343489,3333.0,3332.9,0.72294]
[1762490950510,0.48618,3334.0,3333.9,0.2366]
[1762490950915,0.80973018,3334.0,3333.9,0.2366]
[1762490951211,0.80973018,3334.0,3333.6,3.2078]
[1762490951212,0.72742,3333.7,3333.6,3.2078]
[1762490951413,0.72751,3333.1,3333.0,3.2078]
[1762490953115,0.48636,3332.8,3332.7,0.00450275]
[1762490953519,0.72756,3332.8,3332.7,0.00450275]
[1762490954022,0.72756,3332.8,3332.7,0.24110275]
[1762490956619,0.72756,3332.8,3332.7,3.44890275]
[1762490961324,0.72756,3332.8,3332.7,3.21230275]
[1762490966120,0.72756,3332.8,3332.7,0.00450275]
[1762490966322,1.0512305,3332.8,3332.7,0.00450275]
[1762490967329,1.80470523,3332.8,3332.7,0.00450275]
[1762490967725,1.0512305,3332.8,3332.7,0.00450275]
[1762490975035,1.06415,3332.8,3332.7,0.00450275]
[1762490977634,0.1433,3332.0,3331.6,5.36630695]
[1762490977934,0.1433,3332.0,3331.6,3.44920052]
[1762490977935,0.48652,3331.7,3331.6,3.44920052]
[1762490978138,0.73012,3331.7,3331.6,3.21130052]
[1762490979032,0.7430395,3331.7,3331.6,3.21130052]
[1762490981238,0.7430395,3331.7,3331.6,0.00350052]
[1762490981427,1.06944974,3331.7,3331.6,0.00350052]
[1762490981734,0.72673,3330.9,3330.8,3.2078]
[1762490982129,0.7396495,3330.9,3330.8,3.2078]
[1762490982529,0.7421011,3330.9,3330.8,3.21012419]
[1762490983136,0.86539,3330.5,3330.4,3.2078]
[1762490984135,0.8783095,3330.5,3330.4,3.21109439]
[1762490984440,4.0861095,3330.5,3330.4,0.00329439]
[1762490986639,3.7074095,3330.5,3330.4,0.24929439]
[1762490988745,0.4996095,3330.5,3330.4,0.24929439]
[1762490989246,0.0129195,3330.5,3330.4,8.73600439]
[1762490990445,0.48666,3330.8,3330.5,0.1408]
[1762490990746,0.48666,3330.8,3330.7,0.246]
[1762490993947,0.0024516,3330.9,3330.8,0.246]
[1762490994150,0.0024516,3330.9,3330.8,3.4538]
[1762490994645,0.0024516,3330.9,3330.8,3.94045]
[1762490995350,0.4890816,3330.9,3330.8,3.4538]
[1762490995546,0.4890816,3330.9,3330.8,3.2078]
[1762490995747,0.4890816,3330.9,3330.8,3.4538]
[1762490995947,0.7291816,3330.9,3330.8,3.2078]
[1762490997944,0.7291816,3330.9,3330.8,3.4538]
[1762490998247,0.0024516,3330.9,3330.8,3.94045]
[1762490998445,0.4890816,3330.9,3330.8,3.4538]
[1762491000241,0.7291816,3330.9,3330.8,3.2078]
[1762491001651,0.48667,3330.7,3330.6,0.246]
[1762491002753,0.0024516,3330.9,3330.8,0.246]
[1762491003148,0.4890816,3330.9,3330.8,0.246]
[1762491006651,0.0024516,3330.9,3330.8,0.73265]
[1762491007051,0.4890816,3330.9,3330.8,0.73265]
[1762491007854,0.0024516,3330.9,3330.8,0.73265]
[1762491008159,0.48659,3331.3,3331.2,0.2332]
[1762491008663,0.48652,3331.7,3331.6,0.2332]
[1762491008958,3.94512,3331.7,3331.6,0.2332]
[1762491009156,0.48659,3331.2,3331.1,3.2078]
[1762491009362,0.48659,3331.2,3331.1,0.2332]
[1762491011049,0.73739,3331.2,3331.1,0.2332]
[1762491011250,0.73739,3331.2,3330.6,5.36339982]
[1762491011251,0.48666,3330.7,3330.6,5.36339982]
[1762491011451,0.48666,3330.7,3330.6,3.441]
[1762491013260,0.48666,3330.7,3330.6,3.92768]
[1762491013463,0.48666,3330.7,3330.6,3.441]
[1762491015062,0.73746,3330.7,3330.6,3.2078]
[1762491016057,0.88429,3330.5,3330.4,0.00329439]
[1762491016260,0.73749,3330.5,3330.4,0.23649439]
[1762491016458,0.88429,3330.5,3330.4,0.00329439]
[1762491017060,0.48669,3330.5,3330.4,0.23649439]
[1762491018466,0.1468,3331.0,3330.5,0.1444]
[1762491018763,3.2078,3331.6,3331.0,0.1444]
[1762491018964,0.7374,3331.1,3331.0,0.2332]
[1762491019262,0.3976,3330.5,3330.4,2.15889421]
[1762491019469,3.6054,3330.5,3330.4,0.00329439]
[1762491019765,4.09209,3330.5,3330.4,0.00329439]
[1762491019966,0.88429,3330.5,3330.4,0.00329439]
[1762491021466,4.09209,3330.5,3330.4,0.00329439]
[1762491023269,0.48669,3330.5,3330.4,0.23649439]
[1762491024664,3.2078,3330.9,3330.5,0.2332]
[1762491024971,0.73742,3331.0,3330.9,0.2332]
[1762491025169,0.48662,3331.0,3330.9,0.2332]
[1762491025578,6.012,3331.1,3331.0,0.3776]
[1762491025865,0.0037635,3331.7,3331.0,0.3776]
[1762491025866,3.2115635,3331.7,3331.0,0.3776]
[1762491026068,0.1468,3331.5,3330.9,3.2078]
[1762491026469,0.48662,3331.1,3330.9,3.2078]
[1762491026860,0.48662,3331.1,3331.0,0.2332]
[1762491028070,3.69438,3331.3,3331.2,0.2332]
[1762491028274,0.48658,3331.3,3331.2,0.2332]
[1762491029069,0.73738,3331.3,3331.2,0.2332]
[1762491029476,0.48663,3331.0,3330.6,0.48667]
[1762491029671,0.48663,3330.9,3330.8,0.2332]
[1762491029867,0.48667,3330.7,3330.6,0.2332]
[1762491031170,0.88429,3330.5,3330.4,0.00329439]
[1762491031772,0.88429,3330.5,3330.4,0.23649439]
[1762491032277,0.88429,3330.5,3330.4,0.00329439]
[1762491033481,0.73749,3330.5,3330.4,0.23649439]
[1762491034477,0.88429,3330.5,3330.4,0.00329439]
[1762491037174,4.09209,3330.5,3330.4,0.00329439]
[1762491043687,4.41495959,3330.5,3330.4,0.00329439]
[1762491044782,4.41496669,3330.5,3330.4,0.00329439]
[1762491045185,0.48682,3329.6,3329.5,2.55279982]
[1762491046082,0.48682,3329.6,3329.5,2.55550485]
[1762491046480,0.71742,3329.6,3329.5,2.55550485]
[1762491046676,0.71742,3329.6,3329.5,0.39990503]
[1762491047090,0.71742,3329.6,3329.5,0.25550503]
[1762491047486,0.71742,3329.6,3329.5,0.00270503]
[1762491048890,0.00450275,3329.9,3329.8,0.4868]
[1762491049089,0.48668,3330.6,3330.5,0.3925]
[1762491049388,4.27689606,3331.4,3331.0,0.1397]
[1762491049389,0.48658,3331.3,3331.0,0.1397]
[1762491049583,3.2078,3331.4,3331.0,0.1397]
[1762491050085,0.48658,3331.3,3331.0,0.3925]
[1762491050281,0.48659,3331.2,3331.1,0.2528]
[1762491050484,3.69438,3331.4,3331.1,0.2528]
[1762491050684,3.2078,3331.4,3331.3,0.2528]
[1762491050886,0.00450275,3331.5,3331.4,0.2528]
[1762491051184,0.23510275,3331.5,3331.4,0.2528]
[1762491051582,0.72165275,3331.5,3331.4,0.2528]
[1762491051991,0.00450275,3331.5,3331.4,0.2528]
[1762491053794,0.00450275,3331.5,3331.4,0.48800353]
[1762491054195,3.2078,3332.3,3331.6,0.2528]
[1762491054196,3.69424,3332.3,3331.6,0.2528]
[1762491054396,3.69424,3332.3,3331.6,3.4606]
[1762491055100,0.00450275,3332.0,3331.6,3.4606]
[1762491055292,0.1459,3333.5,3332.2,0.2528]
[1762491055293,3.2078,3332.7,3332.2,0.2528]
[1762491055487,3.2078,3332.7,3332.0,0.1397]
[1762491055488,3.2078,3332.7,3332.6,0.2528]
[1762491055887,3.4384,3332.7,3332.6,0.2528]
[1762491056382,3.92827601,3332.7,3332.6,0.25663953]
[1762491056582,3.92827601,3332.7,3332.6,0.00383953]
[1762491059897,3.44190601,3332.7,3332.6,0.00383953]
[1762491060189,3.44190601,3332.7,3332.6,0.25663953]
[1762491060398,3.44190601,3332.7,3332.6,0.74302953]
[1762491060399,0.00350601,3332.7,3332.6,0.74302953]
[1762491063504,0.72047601,3332.7,3332.6,0.00383953]
[1762491064895,3.92827601,3332.7,3332.6,0.00383953]
[1762491068892,0.72047601,3332.7,3332.6,0.23613953]
[1762491069800,0.00350601,3332.7,3332.6,0.72252953]
[1762491069990,0.00350601,3332.7,3332.6,3.93032953]
[1762491070395,0.00350601,3332.7,3332.6,3.44393953]
[1762491070698,0.23780601,3332.7,3332.6,3.44393953]
[1762491071089,0.00350601,3332.7,3332.6,3.93032953]
[1762491071900,0.72417601,3332.7,3332.6,3.44393953]
[1762491072089,0.72417601,3332.7,3332.6,0.00383953]
[1762491072493,0.00350601,3332.7,3332.6,0.72252953]
[1762491072902,0.48987601,3332.7,3332.6,0.23613953]
[1762491074706,0.00350601,3332.7,3332.6,0.72252953]
[1762491076007,0.00350601,3332.7,3332.6,1.39052953]
[1762491082303,3.2078,3333.5,3333.4,0.2323]
[1762491082907,3.2078,3333.5,3333.4,0.71857]
[1762491083306,3.21096691,3333.5,3333.4,0.71857]
[1762491083504,0.00316691,3333.5,3333.4,0.71857]
[1762491085018,0.00450275,3333.8,3333.7,0.71851]
[1762491085311,0.00450275,3333.8,3333.7,3.92631]
[1762491086107,0.00693326,3333.8,3333.7,3.92631]
[1762491086705,0.49313326,3333.8,3333.7,3.4401]
[1762491086913,0.49313326,3333.8,3333.5,0.48625]
[1762491086914,0.72053,3333.6,3333.5,0.48625]
[1762491087114,0.72053,3333.6,3333.5,0.71855]
[1762491087317,0.48623,3333.6,3333.5,0.86285]
[1762491087710,0.00693326,3333.8,3333.7,0.2323]
[1762491087910,0.49313326,3333.8,3333.7,0.71852]
[1762491088618,0.00693326,3333.8,3333.7,0.71852]
[1762491088919,0.49313326,3333.8,3333.7,0.71852]
[1762491089817,0.00693326,3333.8,3333.7,0.71852]
[1762491090017,0.72743326,3333.8,3333.7,0.2323]
[1762491090719,0.48623,3333.7,3333.5,0.63055]
[1762491091217,0.72053,3333.6,3333.5,0.2323]
[1762491091616,0.2343,3333.5,3333.4,1.15426]
[1762491091815,0.2343,3333.5,3333.4,1.38656]
[1762491092017,0.00693326,3333.8,3333.5,0.86285]
[1762491092321,0.48623,3333.6,3333.5,0.86285]
[1762491094018,0.72053,3333.6,3333.5,0.71855]
[1762491094217,0.86005,3333.5,3333.4,0.668]
[1762491096418,0.72219,3333.2,3333.1,0.00450275]
[1762491098432,0.242,3333.2,3333.1,0.00450275]
[1762491098931,0.72829,3333.2,3333.1,0.00450275]
[1762491099428,0.242,3333.2,3333.1,0.00450275]
[1762491099633,0.48629,3333.2,3333.1,0.25520275]
[1762491099832,0.48626,3333.4,3333.3,0.2507]
[1762491100225,0.72826,3333.4,3333.3,0.2507]
[1762491100831,0.242,3333.4,3333.3,0.73698]
[1762491101032,3.21473326,3333.8,3333.4,0.2507]
[1762491101221,0.48625,3333.5,3333.4,0.2507]
[1762491102031,0.48629,3333.2,3333.1,0.25520275]
[1762491102726,0.48628,3333.3,3333.1,0.74151275]
[1762491102926,0.48628,3333.3,3333.2,0.2507]
[1762491103222,0.72828,3333.3,3333.2,0.2507]
[1762491105532,0.72829,3333.2,3333.1,0.00450275]
[1762491105732,0.72829,3333.2,3333.1,0.25520275]
[1762491106629,0.72829,3333.2,3333.1,0.00450275]
[1762491106834,0.72829,3333.2,3333.1,0.25520275]
[1762491108042,0.72829,3333.2,3333.1,0.00450275]
[1762491108842,0.48629,3333.2,3333.1,0.25520275]
[1762491109942,0.72829,3333.2,3333.1,0.25520275]
[1762491112043,0.72829,3333.2,3333.1,0.00450275]
[1762491113038,0.72829,3333.2,3333.1,0.25520275]
[1762491113039,0.48629,3333.2,3333.1,0.25520275]
[1762491113442,0.72829,3333.2,3333.1,0.25520275]
[1762491114043,0.72829,3333.2,3333.1,0.00450275]
[1762491121744,0.48629,3333.2,3333.1,0.25520275]
[1762491121942,0.242,3333.2,3333.1,0.25520275]
[1762491122148,0.72829,3333.2,3333.1,0.25520275]
[1762491122540,0.72829,3333.2,3333.1,0.00450275]
[1762491124246,0.72829,3333.2,3333.1,0.25520275]
[1762491124447,0.72829,3333.2,3333.1,0.00450275]
[1762491129151,3.3483,3333.5,3333.1,0.00450275]
[1762491129152,3.3483,3333.5,3333.1,0.24850275]
[1762491129355,0.48628,3333.3,3333.2,0.244]
[1762491129955,3.2078,3333.5,3333.4,0.244]
[1762491130260,0.00693326,3333.8,3333.7,0.73021]
[1762491130453,0.00693326,3333.8,3333.7,0.244]
[1762491130654,0.49313326,3333.8,3333.7,0.244]
[1762491130850,0.73093326,3333.8,3333.7,0.244]
[1762491131050,0.72401,3333.7,3333.6,3.2078]
[1762491131548,0.72409,3333.2,3333.1,5.36790257]
[1762491131751,3.93189,3333.2,3333.1,0.00450275]
[1762491132961,4.25338721,3333.2,3333.1,0.00450275]
[1762491133149,3.93189,3333.2,3333.1,0.00450275]
[1762491134260,0.72409,3333.2,3333.1,0.00450275]
[1762491138756,0.72416,3332.7,3332.6,0.00383953]
[1762491141069,0.7242,3332.4,3332.3,0.00450275]
[1762491142169,0.7242,3332.4,3332.3,0.00738711]
[1762491145166,3.932,3332.4,3332.3,0.00738711]
[1762491146270,0.72437,3331.3,3331.2,3.2078]
[1762491147078,0.72750343,3331.3,3331.2,3.2109979]
[1762491151489,0.72750343,3331.3,3331.2,0.0031979]
[1762491152684,3.93530343,3331.3,3331.2,0.0031979]
[1762491155297,0.86011,3331.0,3330.9,0.00450275]
[1762491155499,9.77311,3331.0,3330.9,0.00450275]
[1762491155793,9.77311,3331.0,3330.9,2.75e-06]
[1762491156385,9.77311,3331.0,3330.9,0.00271995]
[1762491156891,0.86018,3330.5,3330.4,3.2078]
[1762491157394,3.2078,3330.9,3330.4,3.2078]
[1762491157395,0.48668,3330.6,3330.5,0.2298]
[1762491157896,0.48668,3330.6,3330.5,0.23294107]
[1762491158094,0.72138,3330.6,3330.5,0.23294107]
[1762491158992,0.72138,3330.6,3330.5,0.00314107]
[1762491163797,0.48664,3330.8,3330.7,0.2494]
[1762491163998,0.48664,3330.8,3330.7,0.73605]
[1762491164295,0.48664,3330.8,3330.7,0.2494]
[1762491164894,3.32,3330.9,3330.8,0.2494]
[1762491165098,3.5664,3330.9,3330.8,0.2494]
[1762491165991,0.73307,3330.6,3330.5,3.21094107]
[1762491171795,0.73307,3330.6,3330.5,0.00314107]
[1762491177101,0.7332,3329.7,3329.6,5.36339982]
[1762491177300,0.73324,3329.4,3329.3,2.15559982]
[1762491177604,0.73327,3329.2,3329.0,0.1481]
[1762491177793,0.73327,3329.2,3329.1,0.2494]
[1762491177997,0.73327,3329.2,3329.1,0.25317586]
[1762491178607,0.73327,3329.2,3329.1,0.00377586]
[1762491179506,0.00450275,3329.5,3329.4,0.2494]
[1762491179707,0.00450275,3329.5,3329.4,3.4572]
[1762491179907,0.00450275,3329.5,3329.4,3.94404]
[1762491180296,0.00450275,3329.5,3329.4,11.94404]
[1762491180601,3.2078,3330.2,3330.1,0.73614]
[1762491180801,0.00313343,3331.3,3330.5,0.4007]
[1762491181003,0.48658,3331.2,3330.8,3.2078]
[1762491181302,0.48658,3331.2,3330.8,3.69443]
[1762491181601,0.2464,3331.1,3330.8,3.2078]
[1762491182600,0.2464,3331.1,3330.9,0.48662]
[1762491183207,0.00763618,3331.3,3331.1,0.48659]
[1762491183506,0.00763618,3331.3,3331.2,0.2494]
[1762491184296,0.00763618,3331.3,3331.2,3.4572]
[1762491187713,0.48658,3331.2,3330.8,3.2078]
[1762491188008,0.2473,3330.9,3330.8,3.2078]
[1762491188512,0.2473,3330.9,3330.8,3.4396]
[1762491188713,0.63391,3331.0,3330.8,3.4396]
[1762491188912,0.73392,3330.9,3330.8,3.2078]
[1762491189616,0.73392,3330.9,3330.8,3.4396]
[1762491190312,0.73392,3330.9,3330.8,3.2078]
[1762491193620,0.2473,3330.9,3330.8,3.4396]
[1762491193920,0.48662,3331.0,3330.9,0.2318]
[1762491194314,0.73392,3331.0,3330.9,0.2318]
[1762491194617,0.73392,3330.9,3330.8,3.2078]
[1762491195623,0.00763618,3331.3,3330.9,0.2318]
[1762491195921,0.48658,3331.2,3331.0,0.1435]
[1762491196218,0.48658,3331.2,3331.1,0.2318]
[1762491197225,0.73392,3330.9,3330.8,3.2078]
[1762491197911,0.73392,3330.9,3330.8,3.4396]
[1762491198313,0.74149618,3331.3,3331.2,0.2318]
[1762491198620,0.00763618,3331.3,3331.2,0.2318]
[1762491199520,0.49419618,3331.3,3331.2,0.2318]
[1762491199710,0.00763618,3331.3,3331.2,0.71838]
[1762491200909,0.00763618,3331.3,3331.2,3.92618]
[1762491202621,0.00763618,3331.3,3331.2,3.4396]
[1762491203722,0.00763618,3331.3,3331.2,3.92618]
[1762491205222,3.618e-05,3331.3,3331.2,3.92618]
[1762491206020,3.618e-05,3331.3,3331.2,6.08068259]
[1762491206220,3.2078,3332.4,3331.2,6.08068259]
[1762491206221,0.48648,3331.9,3331.8,0.2318]
[1762491206426,3.2078,3333.2,3332.0,0.1435]
[1762491206722,0.1473,3333.5,3332.6,3.2078]
[1762491206723,0.2473,3332.7,3332.6,3.2078]
[1762491206913,0.73373,3332.2,3332.1,3.2078]
[1762491207220,0.73373,3332.2,3332.1,3.21091529]
[1762491207524,0.73627594,3332.2,3332.1,3.21091529]
[1762491209820,0.00254594,3332.2,3332.1,3.44271529]
[1762491210020,0.48897594,3332.2,3332.1,3.44271529]
[1762491211020,0.73627594,3332.2,3332.1,3.44271529]
[1762491211220,0.73627594,3332.2,3332.1,3.21091529]
[1762491211824,0.73627594,3332.2,3332.1,3.44271529]
[1762491212122,0.48897594,3332.2,3332.1,3.44271529]
[1762491212519,0.00254594,3332.2,3332.1,3.44271529]
[1762491212822,0.00254594,3332.2,3332.1,3.92916529]
[1762491216028,0.48897594,3332.2,3332.1,3.44271529]
[1762491216230,0.00254594,3332.2,3332.1,3.92916529]
[1762491218130,0.00254594,3332.2,3332.1,3.44271529]
[1762491218530,0.48897594,3332.2,3332.1,3.44271529]
[1762491218823,0.73147594,3332.2,3332.1,3.44271529]
[1762491219023,0.48897594,3332.2,3332.1,3.44271529]
[1762491221736,0.73147594,3332.2,3332.1,3.44271529]
[1762491224039,0.48897594,3332.2,3332.1,3.44271529]
[1762491225436,0.73147594,3332.2,3332.1,3.44271529]
[1762491226232,0.73147594,3332.2,3332.1,3.21091529]
[1762491226543,0.73147594,3332.2,3332.1,3.44681529]
[1762491226933,0.48897594,3332.2,3332.1,3.44681529]
[1762491227232,0.00254594,3332.2,3332.1,3.93326529]
[1762491227437,0.00450275,3332.5,3332.4,0.7223]
[1762491228339,0.00816472,3332.5,3332.4,0.7223]
[1762491229033,9.39135,3332.8,3332.7,0.2359]
[1762491229232,9.39135,3332.8,3332.7,3.4437]
[1762491229732,8.905,3332.8,3332.7,3.93006]
[1762491230241,3.2078,3333.6,3333.0,0.86282]
[1762491230242,0.00450275,3333.1,3333.0,0.86282]
[1762491231133,0.00715468,3333.1,3333.0,0.86282]
[1762491234537,0.00715468,3333.1,3333.0,0.3765]
[1762491234742,0.1494,3333.0,3332.7,3.2078]
[1762491234944,0.72885,3332.8,3332.7,3.4437]
[1762491235440,0.48634,3332.9,3332.7,3.4437]
[1762491235631,8.90715468,3333.1,3333.0,0.2359]
[1762491235835,9.39345468,3333.1,3333.0,0.3713]
[1762491236541,0.48635,3332.8,3332.7,3.4437]
[1762491236739,0.72888,3332.6,3332.5,0.2359]
[1762491236938,0.4864,3332.5,3332.4,0.2359]
[1762491237143,0.8783,3332.5,3332.4,0.2359]
[1762491237344,0.7289,3332.5,3332.4,0.2359]
[1762491239843,0.7289,3332.4,3332.3,3.2078]
[1762491240037,0.7289,3332.4,3332.3,3.4437]
[1762491240439,0.7289,3332.4,3332.3,3.2078]
[1762491244047,0.48643,3332.2,3332.1,0.23901529]
[1762491244444,0.72893,3332.2,3332.1,0.23901529]
[1762491244955,0.72893,3332.2,3332.1,0.00311529]
[1762491245949,9.38543,3332.2,3332.1,0.25361529]
[1762491246150,9.62883,3332.2,3332.1,0.25361529]
[1762491246756,9.38543,3332.2,3332.1,0.25361529]
[1762491247453,8.899,3332.2,3332.1,0.25361529]
[1762491247953,8.899,3332.2,3332.1,0.74006529]
[1762491249451,9.38543,3332.2,3332.1,0.74006529]
[1762491249753,8.899,3332.2,3332.1,0.74006529]
[1762491249954,9.62883,3332.2,3332.1,0.25361529]
[1762491250152,9.62883,3332.2,3332.1,0.00311529]
[1762491250552,9.62883,3332.2,3332.1,0.25361529]
[1762491250853,9.38543,3332.2,3332.1,0.25361529]
[1762491251055,9.62883,3332.2,3332.1,0.00311529]
[1762491259953,0.72988,3331.9,3331.8,0.00450275]
[1762491260158,9.62788,3331.9,3331.8,0.00450275]
[1762491261061,9.62788,3331.9,3331.8,0.00697063]
[1762491261258,9.62788,3331.9,3331.5,3.2078]
[1762491261259,0.72992,3331.6,3331.5,3.2078]
[1762491261565,9.62792,3331.6,3331.5,3.2078]
[1762491262157,9.62792,3331.6,3331.5,3.21036176]
[1762491263969,0.72997,3331.3,3331.2,0.00450275]